[Event "Late-Titled-Tuesday-Blitz-September-12-2023"]
[Site "Chess.com"]
[Date "2023.09.12"]
[Round "5"]
[White "MikeSailer"]
[Black "Al_Shima"]
[Result "1-0"]
[WhiteElo "2187"]
[BlackElo "2338"]
[TimeControl "180+1"]
[EndTime "14:54:19 PDT"]
[Termination "MikeSailer won by checkmate"]

1. d4 {[%clk 0:03:00.6]} 1... e5 {[%clk 0:02:53.1]} 2. dxe5 {[%clk 0:02:58.7]}
2... Nc6 {[%clk 0:02:52.7]} 3. Nf3 {[%clk 0:02:49.9]} 3... Qe7 {[%clk 0:02:52]}
4. Bf4 {[%clk 0:02:40.3]} 4... Qb4+ {[%clk 0:02:51]} 5. Bd2 {[%clk 0:02:36.2]}
5... Qxb2 {[%clk 0:02:50.9]} 6. Nc3 {[%clk 0:02:33.9]} 6... Bb4 {[%clk
0:02:51.4]} 7. Rb1 {[%clk 0:02:24.5]} 7... Qxc3 {[%clk 0:02:46.9]} 8. Bxc3
{[%clk 0:02:23]} 8... Bxc3+ {[%clk 0:02:47.8]} 9. Nd2 {[%clk 0:02:22.4]} 9...
Nxe5 {[%clk 0:02:48.4]} 10. e3 {[%clk 0:02:14]} 10... Nf6 {[%clk 0:02:47.4]} 11.
Bd3 {[%clk 0:02:11.4]} 11... d6 {[%clk 0:02:39.7]} 12. O-O {[%clk 0:02:09.5]}
12... O-O {[%clk 0:02:38.3]} 13. Ne4 {[%clk 0:01:58.4]} 13... Nxe4 {[%clk
0:02:35.6]} 14. Bxe4 {[%clk 0:01:57.6]} 14... Rb8 {[%clk 0:02:34]} 15. Qe2
{[%clk 0:01:40]} 15... Be6 {[%clk 0:02:25.1]} 16. Rxb7 {[%clk 0:01:32.5]} 16...
Rxb7 {[%clk 0:02:23.5]} 17. Bxb7 {[%clk 0:01:32.1]} 17... Bc4 {[%clk 0:02:22.7]}
18. Qd1 {[%clk 0:01:16.2]} 18... Rb8 {[%clk 0:02:12.4]} 19. Bd5 {[%clk
0:00:59.9]} 19... Bxf1 {[%clk 0:02:09.9]} 20. Kxf1 {[%clk 0:00:59.6]} 20... h5
{[%clk 0:01:55.6]} 21. h3 {[%clk 0:00:54.2]} 21... g6 {[%clk 0:01:51.3]} 22. f4
{[%clk 0:00:54]} 22... Nd7 {[%clk 0:01:50.4]} 23. Qd3 {[%clk 0:00:51.7]} 23...
Bg7 {[%clk 0:01:26.6]} 24. Qxg6 {[%clk 0:00:49.6]} 24... Rf8 {[%clk 0:01:27.1]}
25. Qxh5 {[%clk 0:00:46.9]} 25... Nf6 {[%clk 0:01:26.7]} 26. Qf3 {[%clk
0:00:45.8]} 26... Re8 {[%clk 0:01:25.7]} 27. c4 {[%clk 0:00:43.4]} 27... Kf8
{[%clk 0:01:25.7]} 28. g4 {[%clk 0:00:42.9]} 28... Nd7 {[%clk 0:01:25.3]} 29.
Bc6 {[%clk 0:00:42.8]} 29... Re7 {[%clk 0:01:25.1]} 30. Bxd7 {[%clk 0:00:42]}
30... Rxd7 {[%clk 0:01:26]} 31. Qa8+ {[%clk 0:00:41.7]} 31... Ke7 {[%clk
0:01:26.2]} 32. Qxa7 {[%clk 0:00:42.5]} 32... Bc3 {[%clk 0:01:24.6]} 33. Ke2
{[%clk 0:00:39.8]} 33... Bb4 {[%clk 0:01:24.6]} 34. Qd4 {[%clk 0:00:33.2]} 34...
Bc5 {[%clk 0:01:24.6]} 35. Qe4+ {[%clk 0:00:32.4]} 35... Kd8 {[%clk 0:01:24.3]}
36. Qa8+ {[%clk 0:00:32]} 36... Ke7 {[%clk 0:01:24.3]} 37. e4 {[%clk 0:00:26.4]}
37... Rd8 {[%clk 0:01:22.1]} 38. Qd5 {[%clk 0:00:24.4]} 38... Re8 {[%clk
0:01:21.5]} 39. Kf3 {[%clk 0:00:24.2]} 39... Kf8 {[%clk 0:01:19.6]} 40. h4
{[%clk 0:00:21.7]} 40... Rc8 {[%clk 0:01:14.9]} 41. h5 {[%clk 0:00:20.5]} 41...
c6 {[%clk 0:01:14.8]} 42. Qg5 {[%clk 0:00:19.8]} 42... Ra8 {[%clk 0:01:12.3]}
43. e5 {[%clk 0:00:10]} 43... Ra3+ {[%clk 0:00:54.2]} 44. Ke4 {[%clk 0:00:10]}
44... dxe5 {[%clk 0:00:51.5]} 45. fxe5 {[%clk 0:00:10.3]} 45... Rc3 {[%clk
0:00:48.5]} 46. Qd8+ {[%clk 0:00:09.8]} 46... Kg7 {[%clk 0:00:47.4]} 47. Qf6+
{[%clk 0:00:10.5]} 47... Kf8 {[%clk 0:00:47.6]} 48. Qxc6 {[%clk 0:00:10.1]}
48... Rxc4+ {[%clk 0:00:46.4]} 49. Kf5 {[%clk 0:00:11]} 49... Rc3 {[%clk
0:00:42.6]} 50. h6 {[%clk 0:00:10.3]} 50... Rc2 {[%clk 0:00:37.5]} 51. Qc8+
{[%clk 0:00:10.1]} 51... Ke7 {[%clk 0:00:37.3]} 52. Qc7+ {[%clk 0:00:11]} 52...
Ke8 {[%clk 0:00:37.5]} 53. Qc6+ {[%clk 0:00:10.8]} 53... Ke7 {[%clk 0:00:37.4]}
54. Qf6+ {[%clk 0:00:11.1]} 54... Ke8 {[%clk 0:00:37]} 55. Qc6+ {[%clk
0:00:08.5]} 55... Ke7 {[%clk 0:00:37.1]} 56. h7 {[%clk 0:00:08.8]} 56... Rf2+
{[%clk 0:00:34.6]} 57. Ke4 {[%clk 0:00:09.3]} 57... Re2+ {[%clk 0:00:34.6]} 58.
Kf4 {[%clk 0:00:09.6]} 58... Be3+ {[%clk 0:00:33.8]} 59. Kf3 {[%clk 0:00:09.7]}
59... Rh2 {[%clk 0:00:33.9]} 60. Qf6+ {[%clk 0:00:08.9]} 60... Ke8 {[%clk
0:00:32.8]} 61. h8=Q+ {[%clk 0:00:08.2]} 61... Rxh8 {[%clk 0:00:32.9]} 62. Qxh8+
{[%clk 0:00:07.1]} 62... Ke7 {[%clk 0:00:33.8]} 63. Kxe3 {[%clk 0:00:08]} 63...
Kd7 {[%clk 0:00:34]} 64. Qf6 {[%clk 0:00:07.6]} 64... Ke8 {[%clk 0:00:34.3]} 65.
Qc6+ {[%clk 0:00:06.5]} 65... Kf8 {[%clk 0:00:34.2]} 66. a4 {[%clk 0:00:07.4]}
66... Kg7 {[%clk 0:00:34.5]} 67. a5 {[%clk 0:00:08.3]} 67... Kh7 {[%clk
0:00:34.9]} 68. a6 {[%clk 0:00:09.2]} 68... Kg7 {[%clk 0:00:35.8]} 69. a7 {[%clk
0:00:10.1]} 69... Kh7 {[%clk 0:00:36.7]} 70. a8=Q {[%clk 0:00:10.4]} 70... Kg7
{[%clk 0:00:37.6]} 71. Qaa6 {[%clk 0:00:09]} 71... f5 {[%clk 0:00:37.2]} 72.
Qf6+ {[%clk 0:00:09.3]} 72... Kh7 {[%clk 0:00:36.8]} 73. Qb7+ {[%clk 0:00:09.8]}
73... Kg8 {[%clk 0:00:37]} 74. Qd8# {[%clk 0:00:09.4]} 1-0

[Event "Late-Titled-Tuesday-Blitz-September-12-2023"]
[Site "Chess.com"]
[Date "2023.09.12"]
[Round "5"]
[White "MikaelyanArman"]
[Black "SpeedofLight0"]
[Result "1-0"]
[WhiteElo "2937"]
[BlackElo "3088"]
[TimeControl "180+1"]
[EndTime "14:54:27 PDT"]
[Termination "MikaelyanArman won on time"]

1. d4 {[%clk 0:03:00.9]} 1... d5 {[%clk 0:02:57.7]} 2. c4 {[%clk 0:03:00.1]}
2... dxc4 {[%clk 0:02:57.5]} 3. Nf3 {[%clk 0:03:00.4]} 3... c6 {[%clk
0:02:53.4]} 4. e3 {[%clk 0:02:59.6]} 4... b5 {[%clk 0:02:53.4]} 5. a4 {[%clk
0:02:57.1]} 5... e6 {[%clk 0:02:51.8]} 6. b3 {[%clk 0:02:40.9]} 6... a5 {[%clk
0:02:35.6]} 7. bxc4 {[%clk 0:02:31.6]} 7... b4 {[%clk 0:02:35.1]} 8. Bb2 {[%clk
0:02:32.2]} 8... Nf6 {[%clk 0:02:34.9]} 9. Nbd2 {[%clk 0:02:32.2]} 9... c5
{[%clk 0:02:33.7]} 10. Nb3 {[%clk 0:02:27.5]} 10... cxd4 {[%clk 0:02:28.4]} 11.
exd4 {[%clk 0:02:28.4]} 11... Bb7 {[%clk 0:02:26.8]} 12. Bd3 {[%clk 0:02:25.8]}
12... Be7 {[%clk 0:02:19]} 13. O-O {[%clk 0:02:25.8]} 13... O-O {[%clk
0:02:19.4]} 14. Qe2 {[%clk 0:02:23.1]} 14... Nbd7 {[%clk 0:02:17.3]} 15. Rfe1
{[%clk 0:02:17.9]} 15... Bc6 {[%clk 0:02:07.8]} 16. d5 {[%clk 0:02:16.4]} 16...
Nxd5 {[%clk 0:01:38.1]} 17. cxd5 {[%clk 0:02:15.6]} 17... Bxd5 {[%clk 0:01:39]}
18. Bc4 {[%clk 0:02:01.5]} 18... Nb6 {[%clk 0:01:36.3]} 19. Bxd5 {[%clk
0:02:00.1]} 19... Qxd5 {[%clk 0:01:37.1]} 20. Nbd4 {[%clk 0:01:46.5]} 20... Rfd8
{[%clk 0:01:28.9]} 21. Rad1 {[%clk 0:01:45]} 21... Qc4 {[%clk 0:01:26.5]} 22.
Qe4 {[%clk 0:01:22.4]} 22... Nxa4 {[%clk 0:01:21.4]} 23. Ne5 {[%clk 0:01:22.6]}
23... Qd5 {[%clk 0:01:15.9]} 24. Qf4 {[%clk 0:01:13.4]} 24... Nxb2 {[%clk
0:00:51.3]} 25. Qxf7+ {[%clk 0:01:12.8]} 25... Kh8 {[%clk 0:00:51.9]} 26. Qxe7
{[%clk 0:00:30.6]} 26... Re8 {[%clk 0:00:34.7]} 27. Qg5 {[%clk 0:00:13.4]} 27...
Nxd1 {[%clk 0:00:34.4]} 28. Rxd1 {[%clk 0:00:13.7]} 28... b3 {[%clk 0:00:28.6]}
29. Nf7+ {[%clk 0:00:04.3]} 29... Kg8 {[%clk 0:00:28.6]} 30. Nh6+ {[%clk
0:00:05.2]} 30... Kh8 {[%clk 0:00:26.2]} 31. Nf7+ {[%clk 0:00:05.5]} 31... Kg8
{[%clk 0:00:26.9]} 32. Nh6+ {[%clk 0:00:03.2]} 32... Kf8 {[%clk 0:00:24.4]} 33.
Qf4+ {[%clk 0:00:03.6]} 33... Ke7 {[%clk 0:00:24.5]} 34. Ndf5+ {[%clk
0:00:03.3]} 34... Qxf5 {[%clk 0:00:10.7]} 35. Nxf5+ {[%clk 0:00:03.1]} 35...
exf5 {[%clk 0:00:11.4]} 36. Qd6+ {[%clk 0:00:02.7]} 36... Kf7 {[%clk 0:00:11.7]}
37. Qd5+ {[%clk 0:00:03.4]} 37... Kf8 {[%clk 0:00:11]} 38. Qxf5+ {[%clk
0:00:02.7]} 38... Kg8 {[%clk 0:00:11.5]} 39. Qd5+ {[%clk 0:00:03.1]} 39... Kh8
{[%clk 0:00:12.2]} 40. Qxb3 {[%clk 0:00:03.8]} 40... a4 {[%clk 0:00:12.8]} 41.
Qa3 {[%clk 0:00:04.1]} 41... Ra7 {[%clk 0:00:13.3]} 42. h4 {[%clk 0:00:04.3]}
42... h6 {[%clk 0:00:13.5]} 43. g3 {[%clk 0:00:04.9]} 43... Rb8 {[%clk
0:00:13.8]} 44. Kg2 {[%clk 0:00:05.2]} 44... Kh7 {[%clk 0:00:13.3]} 45. Qc5
{[%clk 0:00:05.6]} 45... Rba8 {[%clk 0:00:13.3]} 46. Qf5+ {[%clk 0:00:05.7]}
46... Kh8 {[%clk 0:00:13.5]} 47. Rc1 {[%clk 0:00:04.8]} 47... a3 {[%clk
0:00:13]} 48. Rc8+ {[%clk 0:00:05.5]} 48... Rxc8 {[%clk 0:00:13.7]} 49. Qxc8+
{[%clk 0:00:05.9]} 49... Kh7 {[%clk 0:00:14.5]} 50. Qc5 {[%clk 0:00:06.3]} 50...
Ra8 {[%clk 0:00:13.6]} 51. Qc6 {[%clk 0:00:06.7]} 51... Ra7 {[%clk 0:00:13.3]}
52. Qc2+ {[%clk 0:00:07.3]} 52... Kh8 {[%clk 0:00:13]} 53. Qa2 {[%clk
0:00:07.5]} 53... g6 {[%clk 0:00:12.4]} 54. Kf3 {[%clk 0:00:07.4]} 54... Kg7
{[%clk 0:00:12.9]} 55. Ke4 {[%clk 0:00:07.8]} 55... Kf6 {[%clk 0:00:13]} 56. f4
{[%clk 0:00:07.3]} 56... h5 {[%clk 0:00:13.1]} 57. Kd5 {[%clk 0:00:06.5]} 57...
Kf5 {[%clk 0:00:12.1]} 58. Qc2+ {[%clk 0:00:06]} 58... Kf6 {[%clk 0:00:11]} 59.
Qc3+ {[%clk 0:00:05.8]} 59... Kf7 {[%clk 0:00:11.4]} 60. Qc5 {[%clk 0:00:04.5]}
60... Ra6 {[%clk 0:00:06.4]} 61. Qc7+ {[%clk 0:00:04.6]} 61... Kf6 {[%clk
0:00:06.9]} 62. Qd8+ {[%clk 0:00:04.6]} 62... Kg7 {[%clk 0:00:05.4]} 63. Qc8
{[%clk 0:00:03.8]} 63... Ra7 {[%clk 0:00:04.5]} 64. Qb8 {[%clk 0:00:02.4]} 64...
Ra5+ {[%clk 0:00:04.4]} 65. Ke6 {[%clk 0:00:03]} 65... Ra6+ {[%clk 0:00:03.4]}
66. Ke5 {[%clk 0:00:03.3]} 66... Ra5+ {[%clk 0:00:03.7]} 67. Ke6 {[%clk
0:00:03.8]} 67... Ra6+ {[%clk 0:00:04.2]} 68. Kd5 {[%clk 0:00:04.4]} 68... Ra5+
{[%clk 0:00:03.9]} 69. Kc4 {[%clk 0:00:05]} 69... Ra4+ {[%clk 0:00:02.9]} 70.
Kb3 {[%clk 0:00:04.8]} 70... a2 {[%clk 0:00:02.9]} 71. Qe5+ {[%clk 0:00:04.5]}
71... Kh7 {[%clk 0:00:03]} 72. Kxa4 {[%clk 0:00:05.2]} 72... a1=Q+ {[%clk
0:00:01.7]} 73. Qxa1 {[%clk 0:00:05.9]} 1-0

[Event "Late-Titled-Tuesday-Blitz-September-12-2023"]
[Site "Chess.com"]
[Date "2023.09.12"]
[Round "5"]
[White "Efremov_Vlad"]
[Black "cukin84"]
[Result "0-1"]
[WhiteElo "2353"]
[BlackElo "2233"]
[TimeControl "180+1"]
[EndTime "14:54:29 PDT"]
[Termination "cukin84 won by checkmate"]

1. e4 {[%clk 0:02:58.1]} 1... c6 {[%clk 0:02:59.3]} 2. d4 {[%clk 0:02:54.9]}
2... d5 {[%clk 0:02:59.1]} 3. e5 {[%clk 0:02:55.7]} 3... c5 {[%clk 0:02:58.9]}
4. dxc5 {[%clk 0:02:53.5]} 4... e6 {[%clk 0:02:58.3]} 5. Nf3 {[%clk 0:02:40.2]}
5... Bxc5 {[%clk 0:02:57.3]} 6. a3 {[%clk 0:02:41.1]} 6... a5 {[%clk 0:02:56.2]}
7. Bd3 {[%clk 0:02:40.7]} 7... Ne7 {[%clk 0:02:54.5]} 8. O-O {[%clk 0:02:41.6]}
8... Ng6 {[%clk 0:02:54.1]} 9. Re1 {[%clk 0:02:39.3]} 9... Nc6 {[%clk
0:02:53.1]} 10. Nc3 {[%clk 0:02:39.4]} 10... O-O {[%clk 0:02:49.5]} 11. Nb5
{[%clk 0:02:38.8]} 11... b6 {[%clk 0:02:48.1]} 12. b3 {[%clk 0:02:29]} 12... Ba6
{[%clk 0:02:47.3]} 13. Bb2 {[%clk 0:02:26.5]} 13... Bxb5 {[%clk 0:02:47.2]} 14.
Bxb5 {[%clk 0:02:24.6]} 14... Qc7 {[%clk 0:02:47.5]} 15. Qd2 {[%clk 0:02:10.5]}
15... Rfd8 {[%clk 0:02:45.1]} 16. h4 {[%clk 0:02:10.5]} 16... d4 {[%clk
0:02:28.6]} 17. h5 {[%clk 0:02:10.7]} 17... Nge7 {[%clk 0:02:27.2]} 18. Bd3
{[%clk 0:02:10.7]} 18... Nf5 {[%clk 0:02:22.6]} 19. Bxf5 {[%clk 0:02:01.7]}
19... exf5 {[%clk 0:02:22.6]} 20. Qg5 {[%clk 0:02:00]} 20... g6 {[%clk
0:02:20.8]} 21. Qf6 {[%clk 0:01:56.8]} 21... Be7 {[%clk 0:02:13.9]} 22. hxg6
{[%clk 0:01:35.8]} 22... Bxf6 {[%clk 0:02:13.8]} 23. gxh7+ {[%clk 0:01:36.7]}
23... Kh8 {[%clk 0:02:12.1]} 24. exf6 {[%clk 0:01:37.6]} 24... Qf4 {[%clk
0:02:05.6]} 25. Bc1 {[%clk 0:01:35.6]} 25... Qg4 {[%clk 0:02:02.4]} 26. Ng5
{[%clk 0:01:36.3]} 26... Rf8 {[%clk 0:01:49.2]} 27. f3 {[%clk 0:01:28.2]} 27...
Qg3 {[%clk 0:01:48.6]} 28. Bd2 {[%clk 0:01:23.7]} 28... f4 {[%clk 0:01:48.2]}
29. Nh3 {[%clk 0:01:20.8]} 29... Kxh7 {[%clk 0:01:43.9]} 30. Bxf4 {[%clk
0:01:20.1]} 30... Qg6 {[%clk 0:01:41.1]} 31. Kf2 {[%clk 0:01:14.2]} 31... Qxf6
{[%clk 0:01:36.5]} 32. Rh1 {[%clk 0:01:11.4]} 32... Kg6 {[%clk 0:01:33.8]} 33.
Rae1 {[%clk 0:01:07.5]} 33... Rae8 {[%clk 0:01:31.5]} 34. Rd1 {[%clk 0:00:37.3]}
34... Qh4+ {[%clk 0:01:11.5]} 35. g3 {[%clk 0:00:35.8]} 35... Qe7 {[%clk
0:01:02.6]} 36. Ng1 {[%clk 0:00:34.4]} 36... Rh8 {[%clk 0:00:57.6]} 37. Rxh8
{[%clk 0:00:22.4]} 37... Rxh8 {[%clk 0:00:55]} 38. Re1 {[%clk 0:00:22.8]} 38...
Qc5 {[%clk 0:00:49.7]} 39. Kf1 {[%clk 0:00:18.9]} 39... Rh1 {[%clk 0:00:46.8]}
40. Kg2 {[%clk 0:00:18.7]} 40... Rh7 {[%clk 0:00:44.8]} 41. Re2 {[%clk
0:00:19.2]} 41... f6 {[%clk 0:00:38.9]} 42. Bc1 {[%clk 0:00:19.6]} 42... Ne5
{[%clk 0:00:34.3]} 43. Nh3 {[%clk 0:00:19.7]} 43... Rxh3 {[%clk 0:00:32.1]} 44.
Kxh3 {[%clk 0:00:20.6]} 44... Nxf3 {[%clk 0:00:31.7]} 45. Kg2 {[%clk 0:00:21.3]}
45... Qc6 {[%clk 0:00:28.9]} 46. Kf2 {[%clk 0:00:20.7]} 46... Ne5 {[%clk
0:00:27.7]} 47. Bf4 {[%clk 0:00:19]} 47... Qf3+ {[%clk 0:00:26.2]} 48. Ke1
{[%clk 0:00:18.7]} 48... Qh1+ {[%clk 0:00:24.2]} 49. Kd2 {[%clk 0:00:19.2]}
49... Nf3+ {[%clk 0:00:24.5]} 50. Kd3 {[%clk 0:00:19.9]} 50... Qd1+ {[%clk
0:00:23.7]} 51. Bd2 {[%clk 0:00:20.7]} 51... Nxd2 {[%clk 0:00:21.1]} 52. Rxd2
{[%clk 0:00:21.6]} 52... Qf1+ {[%clk 0:00:20.6]} 53. Kxd4 {[%clk 0:00:22.3]}
53... f5 {[%clk 0:00:18.7]} 54. Rd3 {[%clk 0:00:22]} 54... Kg5 {[%clk
0:00:18.5]} 55. Kc3 {[%clk 0:00:22.5]} 55... Qf2 {[%clk 0:00:17.8]} 56. b4
{[%clk 0:00:22.5]} 56... axb4+ {[%clk 0:00:17.6]} 57. axb4 {[%clk 0:00:23.4]}
57... Qe1+ {[%clk 0:00:17.4]} 58. Kb3 {[%clk 0:00:23.6]} 58... Qb1+ {[%clk
0:00:17.1]} 59. Kc3 {[%clk 0:00:23]} 59... b5 {[%clk 0:00:17.4]} 60. Re3 {[%clk
0:00:21.6]} 60... Qa1+ {[%clk 0:00:17.2]} 61. Kb3 {[%clk 0:00:20.6]} 61... Qb1+
{[%clk 0:00:17]} 62. Kc3 {[%clk 0:00:20.7]} 62... Qa2 {[%clk 0:00:17.2]} 63. Rd3
{[%clk 0:00:20.1]} 63... Qa3+ {[%clk 0:00:17.1]} 64. Kd2 {[%clk 0:00:20.7]}
64... Qxb4+ {[%clk 0:00:17.5]} 65. Ke2 {[%clk 0:00:21.5]} 65... Qc4 {[%clk
0:00:17.8]} 66. Kd2 {[%clk 0:00:21.2]} 66... b4 {[%clk 0:00:18.2]} 67. Rb3
{[%clk 0:00:17.2]} 67... Kg4 {[%clk 0:00:16.2]} 68. Rd3 {[%clk 0:00:16.5]} 68...
Qe4 {[%clk 0:00:15.4]} 69. Kc1 {[%clk 0:00:15]} 69... Qe1+ {[%clk 0:00:14.9]}
70. Kb2 {[%clk 0:00:15.2]} 70... Qxg3 {[%clk 0:00:13.8]} 71. Rd4+ {[%clk
0:00:12.8]} 71... f4 {[%clk 0:00:13.5]} 72. Rxb4 {[%clk 0:00:13.1]} 72... Qe1
{[%clk 0:00:12.6]} 73. Rb8 {[%clk 0:00:12.9]} 73... Qe5+ {[%clk 0:00:11.8]} 74.
c3 {[%clk 0:00:13.3]} 74... Qxb8+ {[%clk 0:00:11.9]} 75. Kc2 {[%clk 0:00:14.2]}
75... Qc7 {[%clk 0:00:12.3]} 76. Kd2 {[%clk 0:00:15]} 76... f3 {[%clk
0:00:12.8]} 77. Ke1 {[%clk 0:00:15.6]} 77... Kg3 {[%clk 0:00:13.3]} 78. Kf1
{[%clk 0:00:16.1]} 78... Qxc3 {[%clk 0:00:12.1]} 79. Kg1 {[%clk 0:00:17]} 79...
Qe1# {[%clk 0:00:12.1]} 0-1

[Event "Late-Titled-Tuesday-Blitz-September-12-2023"]
[Site "Chess.com"]
[Date "2023.09.12"]
[Round "5"]
[White "vi_pranav"]
[Black "azikom"]
[Result "1-0"]
[WhiteElo "2988"]
[BlackElo "2655"]
[TimeControl "180+1"]
[EndTime "14:54:48 PDT"]
[Termination "vi_pranav won on time"]

1. e4 {[%clk 0:03:00.9]} 1... Nf6 {[%clk 0:02:59.9]} 2. e5 {[%clk 0:03:00.8]}
2... Nd5 {[%clk 0:02:59.6]} 3. d4 {[%clk 0:03:01.7]} 3... d6 {[%clk 0:02:59.8]}
4. Nf3 {[%clk 0:03:02.4]} 4... dxe5 {[%clk 0:02:58.8]} 5. Nxe5 {[%clk
0:03:02.3]} 5... c6 {[%clk 0:02:59.2]} 6. Bd3 {[%clk 0:03:01.9]} 6... Nd7 {[%clk
0:02:55.7]} 7. O-O {[%clk 0:03:01.1]} 7... Nxe5 {[%clk 0:02:54.7]} 8. dxe5
{[%clk 0:03:01]} 8... Nb4 {[%clk 0:02:54.7]} 9. Be4 {[%clk 0:02:48.8]} 9... Qxd1
{[%clk 0:02:53.6]} 10. Rxd1 {[%clk 0:02:49.7]} 10... f5 {[%clk 0:02:54.1]} 11.
exf6 {[%clk 0:02:48]} 11... exf6 {[%clk 0:02:53.5]} 12. a3 {[%clk 0:02:42.2]}
12... Na6 {[%clk 0:02:53]} 13. Nc3 {[%clk 0:02:41.2]} 13... Nc5 {[%clk
0:02:51.9]} 14. Bf3 {[%clk 0:02:18.9]} 14... Bf5 {[%clk 0:02:50.9]} 15. b4
{[%clk 0:02:14.8]} 15... Nd7 {[%clk 0:02:49.2]} 16. Be4 {[%clk 0:02:03.4]} 16...
Bg6 {[%clk 0:02:42.7]} 17. Bf4 {[%clk 0:01:59.9]} 17... O-O-O {[%clk 0:02:34.8]}
18. Rd3 {[%clk 0:01:49.7]} 18... Nb6 {[%clk 0:02:33.8]} 19. Rxd8+ {[%clk
0:01:42.7]} 19... Kxd8 {[%clk 0:02:33.6]} 20. Rd1+ {[%clk 0:01:43.3]} 20... Kc8
{[%clk 0:02:33.8]} 21. Be3 {[%clk 0:01:25.4]} 21... Bxe4 {[%clk 0:02:20.6]} 22.
Nxe4 {[%clk 0:01:24.1]} 22... Be7 {[%clk 0:02:20.4]} 23. Kf1 {[%clk 0:01:01]}
23... Rd8 {[%clk 0:02:12.2]} 24. Rxd8+ {[%clk 0:01:00.5]} 24... Kxd8 {[%clk
0:02:12.1]} 25. Bxb6+ {[%clk 0:01:00.5]} 25... axb6 {[%clk 0:02:11.7]} 26. Ke2
{[%clk 0:01:01.1]} 26... b5 {[%clk 0:02:09.9]} 27. Kd3 {[%clk 0:01:00.6]} 27...
f5 {[%clk 0:02:00.5]} 28. Nd2 {[%clk 0:00:55.1]} 28... Bf6 {[%clk 0:01:51.4]}
29. c4 {[%clk 0:00:46]} 29... Bb2 {[%clk 0:01:47.1]} 30. cxb5 {[%clk 0:00:41.4]}
30... cxb5 {[%clk 0:01:46.8]} 31. Nb3 {[%clk 0:00:42]} 31... Bxa3 {[%clk
0:01:35.6]} 32. Kc3 {[%clk 0:00:42]} 32... g6 {[%clk 0:01:11.8]} 33. Nd4 {[%clk
0:00:41.4]} 33... Bc1 {[%clk 0:01:04]} 34. Nxb5 {[%clk 0:00:38.8]} 34... Kd7
{[%clk 0:00:59.6]} 35. Kc4 {[%clk 0:00:37.9]} 35... Bd2 {[%clk 0:00:57]} 36. Nd4
{[%clk 0:00:36.8]} 36... Be1 {[%clk 0:00:53.9]} 37. f3 {[%clk 0:00:31.5]} 37...
Kd6 {[%clk 0:00:51.8]} 38. Nb3 {[%clk 0:00:26.1]} 38... Bf2 {[%clk 0:00:44.8]}
39. Na5 {[%clk 0:00:23.5]} 39... b6 {[%clk 0:00:34.9]} 40. Nb3 {[%clk
0:00:23.5]} 40... Bg1 {[%clk 0:00:34.4]} 41. h3 {[%clk 0:00:22.5]} 41... Kc6
{[%clk 0:00:33.9]} 42. Nc1 {[%clk 0:00:22.5]} 42... b5+ {[%clk 0:00:33.3]} 43.
Kd3 {[%clk 0:00:20.8]} 43... Bf2 {[%clk 0:00:29.7]} 44. Ne2 {[%clk 0:00:18.5]}
44... Be1 {[%clk 0:00:21.2]} 45. Nd4+ {[%clk 0:00:17.9]} 45... Kb6 {[%clk
0:00:20.6]} 46. Nc2 {[%clk 0:00:18.2]} 46... Bf2 {[%clk 0:00:20.2]} 47. g4
{[%clk 0:00:18.6]} 47... h5 {[%clk 0:00:18]} 48. gxh5 {[%clk 0:00:12.2]} 48...
gxh5 {[%clk 0:00:18]} 49. Ke2 {[%clk 0:00:09.4]} 49... Bg1 {[%clk 0:00:14.7]}
50. Ne3 {[%clk 0:00:07.9]} 50... Kc6 {[%clk 0:00:13.7]} 51. Nxf5 {[%clk
0:00:07.4]} 51... Kd5 {[%clk 0:00:11.4]} 52. Kd3 {[%clk 0:00:07.9]} 52... Bf2
{[%clk 0:00:11.1]} 53. f4 {[%clk 0:00:06.3]} 53... Be1 {[%clk 0:00:10.8]} 54.
Ne3+ {[%clk 0:00:06]} 54... Ke6 {[%clk 0:00:08.1]} 55. Nc2 {[%clk 0:00:06.4]}
55... Bg3 {[%clk 0:00:06.8]} 56. Ke4 {[%clk 0:00:06.6]} 56... Kf6 {[%clk
0:00:04.8]} 57. Nd4 {[%clk 0:00:04.7]} 57... Be1 {[%clk 0:00:04.6]} 58. Nc2
{[%clk 0:00:03.7]} 58... Bc3 {[%clk 0:00:03.9]} 59. Ne3 {[%clk 0:00:04]} 59...
Ke6 {[%clk 0:00:03.1]} 60. Nd5 {[%clk 0:00:04.4]} 60... Be1 {[%clk 0:00:02.8]}
61. Nc7+ {[%clk 0:00:03.5]} 61... Kf6 {[%clk 0:00:02.9]} 62. f5 {[%clk
0:00:03.1]} 62... Bd2 {[%clk 0:00:01.9]} 63. Nd5+ {[%clk 0:00:02.2]} 63... Kf7
{[%clk 0:00:02]} 64. Kd4 {[%clk 0:00:02.6]} 1-0